bitfinex-derivatives/quotes_SOLF0:USTF0_20251209
["timestamp","ask_amount","ask_price","bid_price","bid_amount"]
[1765318374138,3.1,138.25,138.23,0.04717676]
[1765318374731,9.6101,138.25,138.23,0.04717676]
[1765318375031,3.19,138.24,138.18,6.5131]
[1765318375231,3.19,138.23,138.19,6.5126]
[1765318375932,9.6999,138.26,138.2,6.5123]
[1765318376133,0.05019982,138.24,138.22,0.0458527]
[1765318376530,3.24019982,138.24,138.22,0.0458527]
[1765318376934,0.05019982,138.24,138.22,0.0458527]
[1765318378032,0.05019982,138.24,138.22,6.5571527]
[1765318379238,0.05019982,138.24,138.22,0.0458527]
[1765318379630,3.19,138.23,138.17,6.5137]
[1765318379942,3.19,138.23,138.12,61.46]
[1765318380239,3.19,138.24,138.15,101.3402]
[1765318380426,3.19,138.23,138.15,101.3402]
[1765318380626,6.5099,138.26,138.17,101.3224]
[1765318380837,0.0494307,138.23,138.2,0.05186452]
[1765318381238,3.19,138.29,138.2,101.35256452]
[1765318381438,3.19,138.28,138.19,101.3081]
[1765318381639,3.19,138.28,138.18,101.3187]
[1765318381943,3.19,138.27,138.19,101.31]
[1765318382334,0.05277426,138.24,138.22,6.55891734]
[1765318382839,8.48767316,138.3,138.22,0.04761734]
[1765318383038,3.19,138.3,138.21,101.2935]
[1765318383443,8.48767316,138.3,138.21,101.2935]
[1765318383635,3.19,138.3,138.23,101.2816]
[1765318383836,0.05167249,138.28,138.25,0.05039421]
[1765318384645,3.24167249,138.28,138.25,0.05039421]
[1765318385439,0.05167249,138.28,138.25,0.05039421]
[1765318386232,3.28167249,138.28,138.25,0.05039421]
[1765318388444,3.23,138.26,138.25,0.05039421]
[1765318389041,3.23,138.27,138.25,0.05039421]
[1765318391845,0.05167249,138.28,138.25,0.05039421]
[1765318392042,3.28167249,138.28,138.25,0.05039421]
[1765318392939,0.05167249,138.28,138.25,0.05039421]
[1765318393637,0.05167249,138.28,138.26,6.5094]
[1765318394932,3.23,138.33,138.29,6.5078]
[1765318395154,8.57003534,138.36,138.27,101.2491]
[1765318395344,5.34006168,138.35,138.27,101.2491]
[1765318395548,3.23,138.36,138.27,101.2491]
[1765318395932,0.04823617,138.33,138.3,0.05192678]
[1765318396642,0.04823617,138.33,138.3,6.55952678]
[1765318398746,0.04823617,138.33,138.3,0.05192678]
[1765318399543,0.04823617,138.33,138.31,67.9671]
[1765318402236,3.23,138.4,138.34,6.5057]
[1765318403041,3.23,138.4,138.35,6.5052]
[1765318403242,0.04769994,138.38,138.36,0.05528222]
[1765318403435,3.27769994,138.38,138.36,0.05528222]
[1765318404252,0.04769994,138.38,138.36,0.05528222]
[1765318404641,0.04769994,138.38,138.36,68.01978222]
[1765318404847,3.23,138.44,138.37,101.1787]
[1765318405250,3.17,138.47,138.4,6.5028]
[1765318405854,3.21843156,138.45,138.42,0.05494893]
[1765318407160,0.04843156,138.45,138.42,0.05494893]
[1765318407447,3.21843156,138.45,138.42,0.05494893]
[1765318407659,0.04843156,138.45,138.42,0.05494893]
[1765318407848,0.04843156,138.45,138.43,6.5014]
[1765318409163,0.04843156,138.45,138.42,0.05494893]
[1765318409854,3.21843156,138.45,138.42,0.05494893]
[1765318410165,9.71923156,138.45,138.42,0.05494893]
[1765318410450,3.17,138.44,138.42,0.05494893]
[1765318411249,0.04843156,138.45,138.42,0.05494893]
[1765318412462,3.21843156,138.45,138.42,0.05494893]
[1765318414662,3.17,138.43,138.42,0.05494893]
[1765318419268,3.21843156,138.45,138.42,0.05494893]
[1765318421069,3.17,138.43,138.37,61.42]
[1765318422057,3.21758246,138.41,138.39,0.04896438]
[1765318422566,0.04758246,138.41,138.39,0.04896438]
[1765318424551,0.04758246,138.41,138.39,6.55226438]
[1765318425368,3.21758246,138.41,138.39,0.04896438]
[1765318425760,0.04758246,138.41,138.39,6.55236438]
[1765318427764,0.04758246,138.41,138.39,0.04896438]
[1765318429475,0.04758246,138.41,138.39,6.55236438]
[1765318430269,0.04758246,138.41,138.39,0.04896438]
[1765318430570,3.21758246,138.41,138.39,0.04896438]
[1765318430875,0.04758246,138.41,138.39,6.55236438]
[1765318431867,3.17,138.48,138.42,6.5019]
[1765318432272,3.17,138.46,138.43,6.5015]
[1765318432466,3.17,138.46,138.38,101.1681]
[1765318432871,0.04887869,138.43,138.41,0.05398925]
[1765318433075,3.21887869,138.43,138.41,0.05398925]
[1765318433281,0.04887869,138.43,138.41,0.05398925]
[1765318433580,3.17,138.49,138.41,0.05398925]
[1765318433778,3.17,138.46,138.38,101.1665]
[1765318434171,3.17,138.46,138.38,61.4]
[1765318434369,0.05327997,138.43,138.41,6.55422627]
[1765318434574,3.22327997,138.43,138.41,0.05182627]
[1765318434879,0.05327997,138.43,138.41,6.55422627]
[1765318438182,3.13327997,138.43,138.41,6.55422627]
[1765318438588,0.05327997,138.43,138.41,6.55422627]
[1765318439081,3.13327997,138.43,138.41,0.05182627]
[1765318440684,9.63487997,138.43,138.41,0.05182627]
[1765318440880,3.08,138.42,138.41,0.05182627]
[1765318441280,3.13327997,138.43,138.41,0.05182627]
[1765318441482,0.05327997,138.43,138.41,0.05182627]
[1765318441789,5.31772624,138.47,138.41,102.63702627]
[1765318441988,5.31772624,138.47,138.42,101.1434]
[1765318442180,5.31772624,138.47,138.41,101.19702627]
[1765318442492,3.08,138.49,138.44,6.5011]
[1765318442881,3.12841907,138.48,138.45,0.0499633]
[1765318443188,3.08,138.47,138.36,101.1843]
[1765318443377,3.08,138.46,138.37,61.4]
[1765318443582,9.5802,138.46,138.4,6.5028]
[1765318443795,3.08,138.45,138.4,6.5028]
[1765318444381,3.12876489,138.44,138.41,0.0525563]
[1765318445791,3.32,138.42,138.41,0.0525563]
[1765318446180,3.32,138.42,138.37,67.9041]
[1765318446393,3.32,138.41,138.37,61.4]
[1765318446692,3.32,138.41,138.35,6.505]
[1765318447293,0.04880909,138.39,138.37,0.048714]
[1765318449588,0.04880909,138.39,138.37,6.552914]
[1765318452998,3.36880909,138.39,138.37,0.048714]
[1765318453197,0.04880909,138.39,138.37,0.048714]
[1765318454498,0.04880909,138.39,138.37,6.553014]
[1765318455203,3.36880909,138.39,138.37,0.048714]
[1765318455393,0.04880909,138.39,138.37,0.048714]
[1765318455595,0.04880909,138.39,138.37,6.553014]
[1765318458499,0.04880909,138.39,138.37,0.048714]
[1765318460000,0.04880909,138.39,138.37,6.553014]
[1765318462786,3.36880909,138.39,138.37,0.048714]
[1765318463795,0.04880909,138.39,138.37,0.048714]
[1765318465099,3.08880909,138.39,138.37,0.048714]
[1765318466094,3.04,138.37,138.33,61.4]
[1765318466404,0.04880909,138.39,138.33,61.4]
[1765318466702,3.04,138.38,138.33,61.4]
[1765318467097,3.04,138.38,138.34,0.04800517]
[1765318467497,3.04,138.38,138.34,6.55370517]
[1765318467901,6.55230909,138.39,138.34,101.24960517]
[1765318467902,0.04880909,138.39,138.34,101.24960517]
[1765318469100,3.08880909,138.39,138.34,0.04800517]
[1765318470504,3.08880909,138.39,138.35,6.5052]
[1765318472998,0.04880909,138.39,138.36,6.5047]
[1765318473517,0.04880909,138.39,138.34,0.04800517]
[1765318473811,0.04880909,138.39,138.37,6.5042]
[1765318474302,3.04,138.38,138.34,101.24610517]
[1765318474509,3.04,138.34,138.26,101.2599]
[1765318474809,3.04,138.34,138.26,61.42]
[1765318475209,3.04,138.33,138.26,61.42]
[1765318475411,3.0866001,138.31,138.28,0.05177713]
[1765318476610,3.04,138.3,138.28,0.05177713]
[1765318479501,9.5478,138.3,138.28,0.05177713]
[1765318479701,3.04,138.29,138.28,0.05177713]
[1765318480918,3.0866001,138.31,138.28,0.05177713]
[1765318481806,9.5939001,138.31,138.28,0.05177713]
[1765318482215,3.04,138.3,138.28,0.05177713]
[1765318486215,3.0866001,138.31,138.28,0.05177713]
[1765318489425,9.5939001,138.31,138.28,0.05177713]
[1765318489614,3.04,138.3,138.18,34.90849222]
[1765318489814,3.04,138.3,138.19,61.44]
[1765318490512,3.04,138.27,138.23,6.5106]
[1765318490821,3.09308703,138.26,138.24,0.05466263]
[1765318491621,0.05308703,138.26,138.24,6.56506263]
[1765318492523,3.09308703,138.26,138.24,0.05466263]
[1765318496125,9.60268703,138.26,138.24,0.05466263]
[1765318496720,3.1,138.25,138.24,0.05466263]
[1765318498824,0.05308703,138.26,138.19,101.3101]
[1765318499026,3.1,138.26,138.19,101.3101]
[1765318499722,0.05520793,138.24,138.21,0.05302531]
[1765318500526,0.05520793,138.24,138.22,6.5113]
[1765318500917,0.05520793,138.24,138.22,70.87870705]
[1765318501224,3.1,138.29,138.23,202.5625]
[1765318501422,3.1,138.32,138.24,101.274]
[1765318501627,3.1,138.31,138.27,6.5091]
[1765318502024,9.6073,138.31,138.27,6.5091]
[1765318502329,3.14947617,138.3,138.28,0.04755829]
[1765318503321,3.14947617,138.3,138.22,61.46]
[1765318503526,3.1,138.29,138.22,61.46]
[1765318503930,3.1,138.27,138.22,6.5111]
[1765318504519,0.04635652,138.26,138.23,6.55984305]
[1765318504719,0.04635652,138.26,138.23,0.04894305]
[1765318505329,3.1,138.32,138.24,101.2742]
[1765318505725,3.1,138.32,138.25,61.46]
[1765318506338,0.04980796,138.3,138.27,0.05274016]
[1765318506627,0.04980796,138.3,138.28,6.5086]
[1765318506936,3.1,138.35,138.28,101.2407]
[1765318507134,167.9509257,138.4,138.27,102.74514016]
[1765318507135,9.6043,138.38,138.3,101.23]
[1765318507339,3.1,138.37,138.31,61.46]
[1765318507722,3.15470496,138.35,138.33,0.04755944]
[1765318507934,3.15470496,138.35,138.33,0.04812603]
[1765318508630,9.66030496,138.35,138.33,0.04812603]
[1765318508833,3.1,138.34,138.29,6.508]
[1765318509431,3.1,138.34,138.3,6.5075]
[1765318509835,0.05378157,138.33,138.31,0.04892005]
[1765318510031,3.15378157,138.33,138.31,0.04892005]
[1765318510228,0.05378157,138.33,138.31,0.04892005]
[1765318510632,0.05378157,138.33,138.31,6.55572005]
[1765318511737,3.16378157,138.33,138.31,0.04892005]
[1765318512932,9.67018157,138.33,138.31,0.04892005]
[1765318513135,3.11,138.32,138.2,101.3015]
[1765318513338,3.11,138.32,138.21,101.2968]
[1765318513731,3.11,138.27,138.21,6.5116]
[1765318514029,0.049569,138.25,138.23,0.0468374]
[1765318514235,0.049569,138.25,138.23,6.5577374]
[1765318514436,3.159569,138.25,138.23,6.5577374]
[1765318514828,0.049569,138.25,138.23,0.0468374]
[1765318515941,0.049569,138.25,138.23,6.5576374]
[1765318516143,3.159569,138.25,138.23,0.0468374]
[1765318519342,0.049569,138.25,138.23,0.0468374]
[1765318520442,0.049569,138.25,138.23,6.5577374]
[1765318521747,3.11,138.29,138.25,6.5097]
[1765318522044,3.11,138.29,138.23,0.0468374]
[1765318522943,3.16124461,138.27,138.23,0.0468374]
[1765318523144,3.16124461,138.27,138.24,0.05320197]
[1765318523847,3.16124461,138.27,138.17,101.3236]
[1765318524038,3.11,138.27,138.18,61.46]
[1765318524438,3.11,138.25,138.21,6.5118]
[1765318524645,3.11,138.25,138.18,162.776]
[1765318524646,3.16,138.28,138.2,101.3025]
[1765318525038,0.0539153,138.25,138.23,0.0508648]
[1765318526349,3.2139153,138.25,138.23,0.0508648]
[1765318526548,3.2139153,138.25,138.23,6.5616648]
[1765318526946,3.2139153,138.25,138.23,0.0508648]
[1765318527941,3.16,138.24,138.18,61.46]
[1765318528643,3.16,138.22,138.18,67.9732]
[1765318528843,3.16,138.22,138.14,101.3468]
[1765318529150,3.21469467,138.19,138.17,0.04665438]
[1765318529349,3.21390034,138.19,138.17,0.04665438]
[1765318533445,0.05390034,138.19,138.17,0.04665438]
[1765318533650,3.21390034,138.19,138.17,0.04665438]
[1765318534851,0.05390034,138.19,138.17,0.04665438]
[1765318536052,0.05390034,138.19,138.17,6.55935438]
[1765318536350,3.21390034,138.19,138.17,6.55935438]
[1765318537461,3.21390034,138.19,138.17,0.04665438]
[1765318540955,9.72650034,138.19,138.17,0.04665438]
[1765318541253,9.72650034,138.19,138.07,61.5]
[1765318541254,3.16,138.17,138.07,61.5]
[1765318541459,3.16,138.15,138.07,61.5]
[1765318541655,3.16,138.15,138.09,6.5169]
[1765318541959,3.16,138.15,138.07,61.5]
[1765318542163,3.21134579,138.13,138.1,0.04775769]
[1765318543559,3.21134579,138.13,138.1,6.56405769]
[1765318543966,0.05134579,138.13,138.1,0.04775769]
[1765318544263,3.21134579,138.13,138.1,0.04775769]
[1765318544850,9.72654579,138.13,138.1,0.04775769]
[1765318545059,3.16,138.12,138.1,0.04775769]
[1765318550460,0.05134579,138.13,138.1,0.04775769]
[1765318550765,3.21134579,138.13,138.1,0.04775769]
[1765318555167,6.5155,138.12,138.1,0.04775769]
[1765318555472,3.3,138.11,138.1,0.04775769]
[1765318557370,3.3,138.11,138.07,61.5]
[1765318558361,3.3,138.09,138.04,1.26007061]
[1765318558566,3.34826678,138.08,138.07,0.0466107]
[1765318558765,0.04837456,138.09,138.06,0.0479876]
[1765318558962,0.04707729,138.09,138.07,6.5177]
[1765318560673,0.04707729,138.09,138.08,6.5174]
[1765318561476,3.34707729,138.09,138.06,0.05162084]
[1765318562182,3.3,138.08,138.06,0.05162084]
[1765318562678,3.3,138.07,138.06,0.05162084]
[1765318568773,3.3,138.05,138.01,61.54]
[1765318569774,3.35397447,138.04,138.02,0.04805065]
[1765318569973,0.05397447,138.04,138.02,0.04805065]
[1765318570380,0.05397447,138.04,138.02,6.56805065]
[1765318570886,9.6168,138.1,138.04,6.5192]
[1765318571093,3.1,138.13,138.04,101.4098]
[1765318571978,0.05200027,138.1,138.07,0.04980996]
[1765318572983,0.05200027,138.1,138.08,6.5173]
[1765318573288,0.05200027,138.1,138.07,0.04980996]
[1765318574489,0.05200027,138.1,138.08,6.5173]
[1765318575392,3.15200027,138.1,138.07,0.04980996]
[1765318575794,0.05200027,138.1,138.07,0.04980996]
[1765318576090,3.15200027,138.1,138.07,0.04980996]
[1765318576589,0.05200027,138.1,138.07,0.04980996]
[1765318577588,0.05200027,138.1,138.07,6.56750996]
[1765318577978,0.05200027,138.1,138.07,0.04980996]
[1765318578585,0.05200027,138.1,138.08,6.5173]
[1765318582198,0.05200027,138.1,138.07,0.04980996]
[1765318582199,3.1,138.14,138.1,6.5164]
[1765318582909,3.1,138.14,138.11,6.5159]
[1765318583106,0.04938332,138.14,138.11,0.05487222]
[1765318583295,3.14938332,138.14,138.11,0.05487222]
[1765318583489,3.14938332,138.14,138.11,61.59487222]
[1765318584093,0.04938332,138.14,138.11,61.59487222]
[1765318584597,0.04938332,138.14,138.12,6.5154]
[1765318585295,3.1,138.17,138.14,6.5145]
[1765318585494,162.8282,138.24,138.14,6.5145]
[1765318585495,11.82749076,138.22,138.14,6.5145]
[1765318585695,162.8282,138.24,138.14,6.5145]
[1765318585696,3.11,138.21,138.14,6.5145]
[1765318586099,3.11,138.18,138.16,0.05559317]
[1765318586495,3.11,138.18,138.11,61.54]
[1765318587398,0.04788582,138.16,138.14,6.5144]
[1765318591903,3.15788582,138.16,138.13,0.05438766]
[1765318594306,3.15788582,138.16,138.13,6.56928766]
[1765318595311,0.04788582,138.16,138.14,6.5145]
[1765318597510,5.31510561,138.23,138.17,6.5131]
[1765318597511,3.11,138.23,138.17,6.5131]
[1765318597709,3.11,138.23,138.15,162.8477]
[1765318598310,3.11,138.23,138.19,6.5121]
[1765318598505,3.15994675,138.22,138.2,0.05379235]
[1765318600408,0.04994675,138.22,138.2,0.05379235]
[1765318600606,0.04994675,138.22,138.2,6.56539235]
[1765318604514,3.11,138.25,138.22,6.5104]
[1765318605509,3.15845655,138.25,138.22,6.5104]
[1765318606306,0.04845655,138.25,138.23,68.0102]
[1765318606613,3.11,138.35,138.25,101.2546]
[1765318607000,9.615,138.35,138.29,6.5072]
[1765318607509,3.16425115,138.33,138.31,0.04992848]
[1765318609506,9.67005115,138.33,138.31,0.04992848]
[1765318609910,3.11,138.32,138.31,0.04992848]
[1765318611110,3.11,138.31,138.26,61.5]
[1765318611317,3.11,138.31,138.25,6.509]
[1765318612116,3.11,138.28,138.27,0.05001688]
[1765318613719,3.11,138.28,138.27,1.688e-05]
[1765318614522,3.11,138.24,138.16,101.323]
[1765318615417,0.05056952,138.21,138.2,6.5115]
[1765318615612,3.11,138.24,138.19,0.05269546]
[1765318616617,0.04587769,138.23,138.21,6.5112]
[1765318620224,3.08,138.27,138.24,6.5095]
[1765318620426,3.08,138.33,138.26,2.90643296]
[1765318621214,3.08,138.32,138.28,0.04641078]
[1765318621418,3.08,138.3,138.28,0.04641078]
[1765318622430,0.05042751,138.31,138.28,6.55431078]
[1765318622634,3.13042751,138.31,138.28,6.55431078]
[1765318625024,3.13042751,138.31,138.28,0.04641078]
[1765318625229,4.57042751,138.31,138.28,0.04641078]
[1765318625428,3.13042751,138.31,138.28,0.04641078]
[1765318626224,9.63702751,138.31,138.28,0.04641078]
[1765318626419,3.3,138.3,138.28,0.04641078]
[1765318630034,9.8071,138.3,138.28,0.04641078]
[1765318630327,3.3,138.37,138.29,101.2279]
[1765318631535,0.05227139,138.34,138.32,6.55355478]
[1765318641444,3.3,138.4,138.34,6.5049]
[1765318641839,3.3,138.4,138.32,61.46]
[1765318642241,3.3,138.4,138.35,6.5045]
[1765318642543,3.35413109,138.39,138.36,0.05157688]
[1765318642743,0.05413109,138.39,138.36,0.05157688]
[1765318643453,0.05413109,138.39,138.36,6.55567688]
[1765318645150,0.05413109,138.39,138.37,6.5037]
[1765318646058,0.05413109,138.39,138.37,67.9437]
[1765318647054,3.13413109,138.39,138.36,0.05157688]
[1765318647251,3.13413109,138.39,138.31,61.44]
[1765318647447,3.08,138.35,138.31,61.44]
[1765318648156,3.12626396,138.34,138.32,0.05092221]
[1765318648457,3.13267315,138.34,138.32,0.05092221]
[1765318653760,0.05267315,138.34,138.32,0.05092221]
[1765318655063,0.05267315,138.34,138.32,6.55692221]
[1765318655675,3.13267315,138.34,138.32,61.49092221]
[1765318658772,3.13267315,138.34,138.32,0.05092221]
[1765318660272,3.08,138.4,138.33,61.44]
[1765318661065,3.08,138.39,138.35,6.5045]
[1765318661271,0.05245503,138.38,138.36,0.05240618]
[1765318661674,0.05245503,138.38,138.36,6.55660618]
[1765318667276,3.13245503,138.38,138.36,0.05240618]
[1765318668680,9.63575503,138.38,138.36,0.05240618]
[1765318668887,3.08,138.37,138.36,0.05240618]
[1765318676583,3.12245503,138.38,138.36,0.05240618]
[1765318677483,0.05245503,138.38,138.36,0.05240618]
[1765318677686,13.50153878,138.44,138.36,101.22500618]
[1765318677990,3.07,138.43,138.36,101.1726]
[1765318678690,3.11624433,138.41,138.39,6.5026]
[1765318680788,0.04624433,138.41,138.39,6.5026]
[1765318684190,3.11624433,138.41,138.39,6.5026]
[1765318684398,3.11624433,138.41,138.38,0.04645287]
[1765318684589,0.04624433,138.41,138.38,0.04645287]
[1765318684786,0.04624433,138.41,138.39,6.5033]
[1765318685608,3.11624433,138.41,138.38,61.46645287]
[1765318685989,3.11624433,138.41,138.38,0.04645287]
[1765318686191,3.07,138.39,138.33,6.506]
[1765318686600,3.07,138.38,138.3,83.01871626]
[1765318686793,9.5745,138.37,138.3,83.01871626]
[1765318686997,3.07,138.36,138.3,61.42]
[1765318687194,0.05448848,138.34,138.32,0.0479346]
[1765318689103,3.33448848,138.34,138.32,0.0479346]
[1765318689304,0.05448848,138.34,138.32,0.0479346]
[1765318691612,3.33448848,138.34,138.3,61.42]
[1765318691799,3.33448848,138.34,138.28,6.5085]
[1765318692008,3.33448848,138.34,138.26,101.2577]
[1765318692302,3.28,138.33,138.25,61.42]
[1765318692491,3.28,138.32,138.25,61.42]
[1765318692803,3.28,138.29,138.27,0.0466211]
[1765318697603,3.28,138.28,138.21,6.5118]
[1765318698601,3.28,138.25,138.23,0.04764336]
[1765318699513,0.05119872,138.26,138.23,0.04764336]
[1765318700316,3.33119872,138.26,138.23,0.04764336]
[1765318702312,3.28,138.23,138.15,6.5143]
[1765318702818,3.28,138.23,138.12,101.356]
[1765318703017,3.28,138.2,138.13,6.5155]
[1765318703220,3.28,138.2,138.1,162.8363]
[1765318703221,3.28,138.2,138.11,101.3666]
[1765318703420,0.04659554,138.17,138.14,0.04635031]
[1765318704526,3.28,138.23,138.14,101.39025031]
[1765318704726,3.28,138.23,138.14,101.3439]
[1765318705527,0.05074367,138.2,138.17,0.0492942]
[1765318707516,0.05074367,138.2,138.18,6.513]
[1765318708134,0.05074367,138.2,138.17,0.0492942]
[1765318708423,3.23074367,138.2,138.17,0.0492942]
[1765318708726,0.05074367,138.2,138.17,0.0492942]
[1765318709633,0.05074367,138.2,138.18,6.513]
[1765318712128,3.18,138.26,138.21,6.5115]
[1765318712629,3.18,138.26,138.19,162.7906]
[1765318712826,3.18,138.26,138.22,6.5113]
[1765318713024,3.18,138.26,138.2,101.3036]
[1765318713227,0.05230927,138.24,138.22,0.04920141]
[1765318714630,0.05230927,138.24,138.23,6.5107]
[1765318719024,3.23230927,138.24,138.23,6.5107]
[1765318719235,3.23230927,138.24,138.22,0.04920141]
[1765318723445,0.05230927,138.24,138.22,0.04920141]
[1765318724344,0.05230927,138.24,138.22,6.56050141]
[1765318724643,3.23230927,138.24,138.22,0.04920141]
[1765318724954,9.74290927,138.24,138.22,0.04920141]
[1765318725141,3.18,138.23,138.22,0.04920141]
[1765318725543,3.18,138.23,138.15,61.48]
[1765318725836,3.18,138.23,138.15,162.8168]
[1765318726037,3.18,138.23,138.19,6.5128]
[1765318726643,3.22748974,138.22,138.2,0.05115057]
[1765318727050,3.22748974,138.22,138.15,61.48]
[1765318728037,3.18,138.2,138.17,0.04972841]
[1765318728240,3.2295482,138.2,138.17,0.04972841]
[1765318728540,3.18,138.18,138.12,6.5157]
[1765318728745,3.18,138.21,138.12,101.3625]
[1765318729642,3.18,138.17,138.15,0.05094491]
[1765318729844,3.22762161,138.17,138.15,0.04727847]
[1765318732035,0.04762161,138.17,138.15,6.56187847]
[1765318734255,0.04762161,138.17,138.15,68.06187847]
[1765318735449,3.23762161,138.17,138.15,61.54727847]
[1765318736739,3.23762161,138.17,138.15,0.04727847]
[1765318738448,0.04762161,138.17,138.15,6.56197847]
[1765318740549,5.37484785,138.21,138.15,162.88477847]
[1765318740850,3.19,138.23,138.16,101.3304]
[1765318741444,3.19,138.23,138.18,0.05443489]
[1765318741654,0.04588675,138.21,138.19,6.5127]
[1765318741854,0.05311063,138.21,138.19,61.55428767]
[1765318742244,8.12275266,138.28,138.19,162.86208767]
[1765318742554,3.19,138.26,138.19,162.8078]
[1765318743054,3.19,138.26,138.22,6.5111]
[1765318743446,0.04862822,138.25,138.23,6.56548066]
[1765318743650,0.04983776,138.25,138.23,6.56548066]
[1765318744453,3.19,138.29,138.23,6.56548066]
[1765318744454,3.19,138.29,138.26,6.5094]
[1765318745155,3.19,138.29,138.27,6.5088]
[1765318745352,3.19,138.31,138.25,101.2642]
[1765318745558,0.04842248,138.29,138.27,0.04723411]
[1765318746050,0.04842248,138.29,138.28,6.5086]
[1765318746654,3.34,138.34,138.3,6.5074]
[1765318746847,68.0251,138.36,138.29,101.2373]
[1765318746848,61.52,138.36,138.29,101.2373]
[1765318747054,3.34,138.37,138.31,101.2225]
[1765318747249,3.34,138.4,138.32,61.5]
[1765318747443,3.34,138.39,138.32,162.713]
[1765318747649,0.04785748,138.37,138.34,0.05283816]
[1765318748542,0.04785748,138.37,138.35,6.5051]
[1765318753559,0.04785748,138.37,138.35,67.9651]
[1765318755155,0.04785748,138.37,138.34,0.05283816]
[1765318755555,3.38785748,138.37,138.34,0.05283816]
[1765318757960,3.34,138.36,138.34,0.05283816]
[1765318761366,3.38785748,138.37,138.34,0.05283816]
[1765318761560,0.04785748,138.37,138.34,0.05283816]
[1765318762164,0.04785748,138.37,138.35,6.5051]
[1765318762364,0.04785748,138.37,138.34,0.05283816]
[1765318762365,3.34,138.4,138.34,162.71093816]
[1765318763365,0.04911452,138.38,138.34,162.71093816]
[1765318763563,3.38911452,138.38,138.34,61.51283816]
[1765318763758,3.38911452,138.38,138.35,6.5052]
[1765318764067,3.38911452,138.38,138.34,61.51283816]
[1765318764967,3.38911452,138.38,138.34,0.05283816]
[1765318765666,3.31,138.35,138.34,0.05283816]
[1765318768162,3.31,138.37,138.34,0.05283816]
[1765318768570,3.31,138.35,138.34,0.05283816]
[1765318769967,3.31,138.33,138.28,61.44]
[1765318770169,3.31,138.33,138.23,263.9957]
[1765318770872,0.04612651,138.29,138.27,0.04606283]
[1765318775967,3.31,138.28,138.27,0.04606283]
[1765318776171,3.31,138.28,138.2,162.7601]
[1765318777273,0.05470408,138.25,138.23,6.5615509]
[1765318777473,0.05470408,138.25,138.23,0.0506509]
[1765318778567,3.36470408,138.25,138.23,0.0506509]
[1765318778765,0.05470408,138.25,138.23,0.0506509]
[1765318778968,3.36470408,138.25,138.23,0.0506509]
[1765318780473,0.05470408,138.25,138.23,6.5613509]
[1765318784172,3.36470408,138.25,138.23,0.0506509]
[1765318785265,3.36470408,138.25,138.2,61.46]
[1765318785464,3.36470408,138.25,138.16,61.48]
[1765318785663,3.31,138.23,138.16,162.8108]
[1765318786478,0.05324481,138.21,138.18,0.05151766]
[1765318787477,0.05324481,138.21,138.19,6.5129]
[1765318789969,3.31,138.26,138.23,6.5108]
[1765318790981,3.35576983,138.26,138.23,6.55878664]
[1765318795377,3.35576983,138.26,138.23,0.04798664]
[1765318795378,0.04576983,138.26,138.23,0.04798664]
[1765318796482,0.04576983,138.26,138.25,6.51]
[1765318797376,0.04576983,138.26,138.23,0.04798664]
[1765318797377,3.23576983,138.26,138.23,0.04798664]
[1765318800481,9.74536983,138.26,138.23,0.04798664]
[1765318800686,3.19,138.25,138.23,0.04798664]
[1765318802079,3.19,138.24,138.23,0.04798664]
[1765318802277,3.19,138.24,138.2,61.48]
[1765318802788,3.19,138.22,138.16,61.48]
[1765318803388,3.19,138.19,138.18,0.0461039]
[1765318807188,3.19,138.18,138.12,6.5158]
[1765318807387,3.19,138.18,138.11,61.5]
[1765318807990,3.24520187,138.16,138.13,0.05365605]
[1765318808892,9.75990187,138.16,138.13,0.05365605]
[1765318809094,3.19,138.15,138.13,0.05365605]
[1765318809495,9.705,138.15,138.13,0.05365605]
[1765318809693,3.19,138.14,138.13,0.05365605]
[1765318809990,3.19,138.15,138.13,0.05365605]
[1765318810488,0.05520187,138.16,138.13,0.05365605]
[1765318811487,3.30520187,138.16,138.13,6.56915605]
[1765318811887,0.05520187,138.16,138.13,6.56915605]
[1765318812087,0.05520187,138.16,138.14,6.515]